[Event "Early-Titled-Tuesday-Blitz-April-23-2024"]
[Site "Chess.com"]
[Date "2024.04.23"]
[Round "4"]
[White "SaiAgni_98"]
[Black "aljado"]
[Result "1-0"]
[WhiteElo "2472"]
[BlackElo "2154"]
[TimeControl "180+1"]
[EndTime "8:37:57 PDT"]
[Termination "SaiAgni_98 won by resignation"]

1. c4 {[%clk 0:03:00.9]} 1... e5 {[%clk 0:02:57.9]} 2. g3 {[%clk 0:03:00.4]}
2... Nf6 {[%clk 0:02:57.7]} 3. Bg2 {[%clk 0:03:00]} 3... Nc6 {[%clk 0:02:57.4]}
4. Nc3 {[%clk 0:02:59.3]} 4... Be7 {[%clk 0:02:55.3]} 5. d3 {[%clk 0:02:50.6]}
5... O-O {[%clk 0:02:53.6]} 6. Nf3 {[%clk 0:02:50.4]} 6... d5 {[%clk 0:02:50.7]}
7. cxd5 {[%clk 0:02:44.4]} 7... Nxd5 {[%clk 0:02:48.8]} 8. O-O {[%clk
0:02:34.8]} 8... Be6 {[%clk 0:02:48.2]} 9. Bd2 {[%clk 0:02:31.2]} 9... Nb6
{[%clk 0:02:47]} 10. Rc1 {[%clk 0:02:27.1]} 10... f6 {[%clk 0:02:43.6]} 11. Be3
{[%clk 0:02:18]} 11... Qd7 {[%clk 0:02:39.5]} 12. a3 {[%clk 0:02:14.5]} 12...
Rad8 {[%clk 0:02:32]} 13. b4 {[%clk 0:02:12.7]} 13... a6 {[%clk 0:02:08.2]} 14.
Ne4 {[%clk 0:01:49.9]} 14... Nd5 {[%clk 0:01:56.3]} 15. Bc5 {[%clk 0:01:47.7]}
15... Bh3 {[%clk 0:01:51.1]} 16. Bxe7 {[%clk 0:01:44.3]} 16... Ncxe7 {[%clk
0:01:50.7]} 17. Nc5 {[%clk 0:01:39.9]} 17... Qc8 {[%clk 0:01:49]} 18. Bxh3
{[%clk 0:01:32.6]} 18... Qxh3 {[%clk 0:01:47.9]} 19. Nxb7 {[%clk 0:01:31.6]}
19... e4 {[%clk 0:01:40.2]} 20. dxe4 {[%clk 0:01:20.6]} 20... Ne3 {[%clk
0:01:35.4]} 21. Qb3+ {[%clk 0:01:19.3]} 21... Kh8 {[%clk 0:01:29.8]} 22. Qxe3
{[%clk 0:01:16]} 22... Rb8 {[%clk 0:01:27]} 23. Nc5 {[%clk 0:01:15.6]} 23... Rb5
{[%clk 0:01:26.5]} 24. Rfd1 {[%clk 0:01:14.1]} 24... Ng6 {[%clk 0:01:22.9]} 25.
Nd7 {[%clk 0:01:09.5]} 25... Rd8 {[%clk 0:01:14.1]} 26. Nde5 {[%clk 0:01:05.2]}
26... Rxd1+ {[%clk 0:01:10]} 27. Rxd1 {[%clk 0:01:05.3]} 27... Rxe5 {[%clk
0:01:00.7]} 28. Rd8+ {[%clk 0:01:04.7]} 1-0

[Event "Early-Titled-Tuesday-Blitz-April-23-2024"]
[Site "Chess.com"]
[Date "2024.04.23"]
[Round "4"]
[White "Shankland"]
[Black "tusplingher"]
[Result "1-0"]
[WhiteElo "3053"]
[BlackElo "2650"]
[TimeControl "180+1"]
[EndTime "8:38:02 PDT"]
[Termination "Shankland won by checkmate"]

1. e4 {[%clk 0:03:00.9]} 1... c5 {[%clk 0:02:59.4]} 2. Nf3 {[%clk 0:03:01]} 2...
d6 {[%clk 0:02:59.4]} 3. d4 {[%clk 0:03:01.3]} 3... cxd4 {[%clk 0:02:58.1]} 4.
Nxd4 {[%clk 0:03:02.2]} 4... Nf6 {[%clk 0:02:58.8]} 5. Nc3 {[%clk 0:03:02.4]}
5... a6 {[%clk 0:02:58.8]} 6. Be2 {[%clk 0:03:03]} 6... e5 {[%clk 0:02:48.3]} 7.
Nb3 {[%clk 0:03:02.4]} 7... Be7 {[%clk 0:02:48.5]} 8. Be3 {[%clk 0:03:01.1]}
8... Be6 {[%clk 0:02:46.7]} 9. Qd3 {[%clk 0:02:59.8]} 9... d5 {[%clk 0:02:38.8]}
10. exd5 {[%clk 0:02:58.3]} 10... Nxd5 {[%clk 0:02:38.1]} 11. O-O-O {[%clk
0:02:56]} 11... Nxe3 {[%clk 0:02:28.7]} 12. Qxe3 {[%clk 0:02:55.9]} 12... Qc7
{[%clk 0:02:26.8]} 13. Bf3 {[%clk 0:02:53.1]} 13... Nd7 {[%clk 0:02:16.3]} 14.
Kb1 {[%clk 0:02:51.5]} 14... O-O {[%clk 0:02:08]} 15. Rhf1 {[%clk 0:02:51.1]}
15... Nc5 {[%clk 0:02:05]} 16. Nd5 {[%clk 0:02:49.5]} 16... Bxd5 {[%clk
0:02:01.4]} 17. Bxd5 {[%clk 0:02:50.4]} 17... Nxb3 {[%clk 0:01:59.1]} 18. axb3
{[%clk 0:02:49.8]} 18... Rad8 {[%clk 0:01:56.9]} 19. Rfe1 {[%clk 0:02:46.5]}
19... Bf6 {[%clk 0:01:50.4]} 20. c3 {[%clk 0:02:45.8]} 20... b5 {[%clk 0:01:44]}
21. b4 {[%clk 0:02:44.9]} 21... Rd7 {[%clk 0:01:39.9]} 22. Rd3 {[%clk
0:02:39.1]} 22... a5 {[%clk 0:01:24.4]} 23. Qc5 {[%clk 0:02:26.2]} 23... axb4
{[%clk 0:00:27.2]} 24. Qxb4 {[%clk 0:02:24.9]} 24... Rfd8 {[%clk 0:00:27]} 25.
Red1 {[%clk 0:02:23.6]} 25... h6 {[%clk 0:00:14.9]} 26. Qxb5 {[%clk 0:02:18.3]}
26... Kh8 {[%clk 0:00:11.4]} 27. Be4 {[%clk 0:02:15.1]} 27... Rxd3 {[%clk
0:00:11.3]} 28. Rxd3 {[%clk 0:02:15.3]} 28... Rb8 {[%clk 0:00:10.7]} 29. Qd7
{[%clk 0:02:09.6]} 29... Qb6 {[%clk 0:00:07.5]} 30. Rd2 {[%clk 0:02:09.6]} 30...
Qc5 {[%clk 0:00:04.9]} 31. Qxf7 {[%clk 0:02:04]} 31... Qxc3 {[%clk 0:00:03.3]}
32. Rd8+ {[%clk 0:02:04.1]} 32... Bxd8 {[%clk 0:00:02.9]} 33. Qf8# {[%clk
0:02:03]} 1-0

[Event "Early-Titled-Tuesday-Blitz-April-23-2024"]
[Site "Chess.com"]
[Date "2024.04.23"]
[Round "4"]
[White "AcostaPablo"]
[Black "AlexeiShirov"]
[Result "0-1"]
[WhiteElo "2605"]
[BlackElo "2835"]
[TimeControl "180+1"]
[EndTime "8:38:07 PDT"]
[Termination "AlexeiShirov won on time"]

1. d4 {[%clk 0:02:57.4]} 1... d5 {[%clk 0:02:59.5]} 2. c4 {[%clk 0:02:57.9]}
2... c6 {[%clk 0:02:59]} 3. Nc3 {[%clk 0:02:56.5]} 3... Nf6 {[%clk 0:02:58.8]}
4. e3 {[%clk 0:02:56.8]} 4... Nbd7 {[%clk 0:02:54.4]} 5. Nf3 {[%clk 0:02:56.9]}
5... e6 {[%clk 0:02:54.1]} 6. Bd3 {[%clk 0:02:56.4]} 6... dxc4 {[%clk
0:02:52.9]} 7. Bxc4 {[%clk 0:02:57]} 7... b5 {[%clk 0:02:52.9]} 8. Bd3 {[%clk
0:02:57.7]} 8... Bb7 {[%clk 0:02:52.9]} 9. O-O {[%clk 0:02:58.4]} 9... a6 {[%clk
0:02:52.5]} 10. a4 {[%clk 0:02:48.4]} 10... b4 {[%clk 0:02:47.1]} 11. Ne2 {[%clk
0:02:28.9]} 11... c5 {[%clk 0:02:42.8]} 12. b3 {[%clk 0:02:29.2]} 12... cxd4
{[%clk 0:02:33.4]} 13. Nfxd4 {[%clk 0:02:21]} 13... Nc5 {[%clk 0:02:32.8]} 14.
Bc4 {[%clk 0:02:19.3]} 14... Be7 {[%clk 0:02:28.3]} 15. Bb2 {[%clk 0:02:18.6]}
15... O-O {[%clk 0:02:27.1]} 16. f3 {[%clk 0:02:18.6]} 16... Qb6 {[%clk
0:02:20.7]} 17. Qe1 {[%clk 0:02:13]} 17... a5 {[%clk 0:02:14.2]} 18. Qg3 {[%clk
0:02:11.9]} 18... g6 {[%clk 0:02:10.5]} 19. Qg5 {[%clk 0:01:52]} 19... Nd5
{[%clk 0:02:03.1]} 20. Qh6 {[%clk 0:01:49.2]} 20... Bf6 {[%clk 0:02:02.3]} 21.
Ng3 {[%clk 0:01:22.8]} 21... Rfd8 {[%clk 0:01:55.5]} 22. Nh5 {[%clk 0:00:36.3]}
22... gxh5 {[%clk 0:01:54.3]} 23. Bxd5 {[%clk 0:00:33.9]} 23... Bg7 {[%clk
0:01:51]} 24. Qg5 {[%clk 0:00:11.6]} 24... exd5 {[%clk 0:01:49.7]} 25. Nf5
{[%clk 0:00:11.5]} 25... Ne6 {[%clk 0:01:49.6]} 26. Qg3 {[%clk 0:00:01.2]} 26...
f6 {[%clk 0:01:40.9]} 0-1

[Event "Early-Titled-Tuesday-Blitz-April-23-2024"]
[Site "Chess.com"]
[Date "2024.04.23"]
[Round "4"]
[White "klercaku"]
[Black "RantomOpening"]
[Result "0-1"]
[WhiteElo "2257"]
[BlackElo "2503"]
[TimeControl "180+1"]
[EndTime "8:38:09 PDT"]
[Termination "RantomOpening won by checkmate"]

1. e4 {[%clk 0:03:00.9]} 1... c5 {[%clk 0:02:45.2]} 2. Nf3 {[%clk 0:02:59.7]}
2... e6 {[%clk 0:02:45.7]} 3. d4 {[%clk 0:02:59.5]} 3... cxd4 {[%clk 0:02:44.2]}
4. Nxd4 {[%clk 0:03:00.4]} 4... Nf6 {[%clk 0:02:44.6]} 5. Nc3 {[%clk 0:02:58.8]}
5... Nc6 {[%clk 0:02:45.1]} 6. Be2 {[%clk 0:02:58.6]} 6... Bb4 {[%clk
0:02:45.2]} 7. Nxc6 {[%clk 0:02:51.2]} 7... bxc6 {[%clk 0:02:44.2]} 8. Bd3
{[%clk 0:02:45.7]} 8... d5 {[%clk 0:02:43.6]} 9. exd5 {[%clk 0:02:44.5]} 9...
Nxd5 {[%clk 0:02:42.7]} 10. Bd2 {[%clk 0:02:44.5]} 10... Qa5 {[%clk 0:02:43.2]}
11. Nxd5 {[%clk 0:02:42.1]} 11... Bxd2+ {[%clk 0:02:43.7]} 12. Qxd2 {[%clk
0:02:43]} 12... Qxd2+ {[%clk 0:02:44.6]} 13. Kxd2 {[%clk 0:02:43.4]} 13... cxd5
{[%clk 0:02:45.5]} 14. Rhe1 {[%clk 0:02:33.9]} 14... Ke7 {[%clk 0:02:42.9]} 15.
f4 {[%clk 0:02:33.6]} 15... Kd6 {[%clk 0:02:41.8]} 16. c4 {[%clk 0:02:16.4]}
16... Bb7 {[%clk 0:02:40.7]} 17. Kc3 {[%clk 0:02:14.1]} 17... Rac8 {[%clk
0:02:40.3]} 18. Rad1 {[%clk 0:02:07.1]} 18... Rhd8 {[%clk 0:02:36.5]} 19. g3
{[%clk 0:01:41.3]} 19... f6 {[%clk 0:02:36.2]} 20. b3 {[%clk 0:01:36.9]} 20...
e5 {[%clk 0:02:34.6]} 21. fxe5+ {[%clk 0:01:31.3]} 21... fxe5 {[%clk 0:02:35.5]}
22. Bf5 {[%clk 0:01:22.9]} 22... d4+ {[%clk 0:02:33.8]} 23. Kd3 {[%clk
0:01:21.8]} 23... Rc7 {[%clk 0:02:34]} 24. Rf1 {[%clk 0:01:11.3]} 24... Rf7
{[%clk 0:02:32]} 25. Be4 {[%clk 0:01:00.2]} 25... Bxe4+ {[%clk 0:02:26.9]} 26.
Kxe4 {[%clk 0:01:01.1]} 26... Rdf8 {[%clk 0:02:26.6]} 27. Rxf7 {[%clk
0:00:53.8]} 27... Rxf7 {[%clk 0:02:27.5]} 28. Rd2 {[%clk 0:00:47.4]} 28... a5
{[%clk 0:02:24.6]} 29. a3 {[%clk 0:00:37.1]} 29... g5 {[%clk 0:02:23.6]} 30. b4
{[%clk 0:00:36.1]} 30... axb4 {[%clk 0:02:23.9]} 31. axb4 {[%clk 0:00:36.7]}
31... g4 {[%clk 0:02:24.2]} 32. c5+ {[%clk 0:00:36.7]} 32... Ke6 {[%clk
0:02:24.6]} 33. b5 {[%clk 0:00:32.9]} 33... Rf3 {[%clk 0:02:24.7]} 34. Rd3
{[%clk 0:00:16.9]} 34... Rf2 {[%clk 0:02:20]} 35. Rb3 {[%clk 0:00:11.2]} 35...
Re2+ {[%clk 0:02:13.2]} 36. Kd3 {[%clk 0:00:09]} 36... Rxh2 {[%clk 0:02:05.4]}
37. b6 {[%clk 0:00:07.2]} 37... Kd5 {[%clk 0:02:05.7]} 38. Rb2 {[%clk
0:00:01.5]} 38... e4# {[%clk 0:02:05.8]} 0-1

[Event "Early-Titled-Tuesday-Blitz-April-23-2024"]
[Site "Chess.com"]
[Date "2024.04.23"]
[Round "4"]
[White "David_George21"]
[Black "Happy1712Drummer"]
[Result "1-0"]
[WhiteElo "2328"]
[BlackElo "2512"]
[TimeControl "180+1"]
[EndTime "8:38:15 PDT"]
[Termination "David_George21 won by resignation"]

1. e4 {[%clk 0:02:54.4]} 1... c5 {[%clk 0:02:59.9]} 2. Nf3 {[%clk 0:02:53.9]}
2... e6 {[%clk 0:03:00.5]} 3. d4 {[%clk 0:02:54.4]} 3... cxd4 {[%clk 0:03:01.4]}
4. Nxd4 {[%clk 0:02:54.9]} 4... Nf6 {[%clk 0:03:02.1]} 5. Nc3 {[%clk 0:02:51.7]}
5... Nc6 {[%clk 0:03:02.6]} 6. Ndb5 {[%clk 0:02:49.3]} 6... Bc5 {[%clk
0:03:02.5]} 7. Bf4 {[%clk 0:02:47.7]} 7... O-O {[%clk 0:03:02]} 8. Bc7 {[%clk
0:02:47.9]} 8... Qe7 {[%clk 0:03:02.3]} 9. Bd6 {[%clk 0:02:48.6]} 9... Bxd6
{[%clk 0:03:02.7]} 10. Qxd6 {[%clk 0:02:49.2]} 10... Ne8 {[%clk 0:03:03.3]} 11.
Qxe7 {[%clk 0:02:48.5]} 11... Nxe7 {[%clk 0:03:04]} 12. O-O-O {[%clk 0:02:49.1]}
12... a6 {[%clk 0:02:51.2]} 13. Nd6 {[%clk 0:02:47.5]} 13... f5 {[%clk
0:02:45.2]} 14. Nxc8 {[%clk 0:02:40.5]} 14... Nxc8 {[%clk 0:02:15.6]} 15. Rxd7
{[%clk 0:02:40.9]} 15... b5 {[%clk 0:02:15.2]} 16. exf5 {[%clk 0:02:23]} 16...
exf5 {[%clk 0:02:10.9]} 17. Be2 {[%clk 0:02:12.9]} 17... Nf6 {[%clk 0:02:08.6]}
18. Rc7 {[%clk 0:02:06.3]} 18... Nd6 {[%clk 0:02:08.7]} 19. Bf3 {[%clk
0:02:05.7]} 19... Rac8 {[%clk 0:02:08]} 20. Rxc8 {[%clk 0:01:58.9]} 20... Rxc8
{[%clk 0:02:08.9]} 21. Rd1 {[%clk 0:01:59]} 21... Nf7 {[%clk 0:01:56.8]} 22. Bb7
{[%clk 0:01:52.5]} 22... Rb8 {[%clk 0:01:48.4]} 23. Bxa6 {[%clk 0:01:52.4]}
23... b4 {[%clk 0:01:47.5]} 24. Nd5 {[%clk 0:01:51.5]} 24... Ne4 {[%clk
0:01:37.1]} 25. f3 {[%clk 0:01:46.7]} 25... Nc5 {[%clk 0:01:37.3]} 26. Bc4
{[%clk 0:01:45.2]} 26... Ne5 {[%clk 0:01:33.9]} 27. Be2 {[%clk 0:01:22.7]} 27...
Ra8 {[%clk 0:01:26.8]} 28. Nxb4 {[%clk 0:01:18.9]} 28... Ne6 {[%clk 0:01:14]}
29. Rd5 {[%clk 0:01:15.1]} 29... Nf7 {[%clk 0:00:57]} 30. Bc4 {[%clk 0:01:14.8]}
30... Rc8 {[%clk 0:00:51.4]} 31. b3 {[%clk 0:01:15]} 31... g6 {[%clk 0:00:50.3]}
32. Rd7 {[%clk 0:01:13.8]} 32... Re8 {[%clk 0:00:44.1]} 33. Nd5 {[%clk
0:01:13.2]} 33... Kg7 {[%clk 0:00:43.2]} 34. Nc7 {[%clk 0:01:13.2]} 1-0

[Event "Early-Titled-Tuesday-Blitz-April-23-2024"]
[Site "Chess.com"]
[Date "2024.04.23"]
[Round "4"]
[White "stasOR4ik"]
[Black "Sadykov_Ramil"]
[Result "0-1"]
[WhiteElo "2427"]
[BlackElo "2638"]
[TimeControl "180+1"]
[EndTime "8:38:19 PDT"]
[Termination "Sadykov_Ramil won by resignation"]

1. e4 {[%clk 0:03:00.9]} 1... d6 {[%clk 0:02:15.2]} 2. c4 {[%clk 0:03:00.3]}
2... g6 {[%clk 0:02:10.9]} 3. Nc3 {[%clk 0:03:01.2]} 3... Bg7 {[%clk 0:02:11.1]}
4. g3 {[%clk 0:03:01.9]} 4... c5 {[%clk 0:02:07.9]} 5. Bg2 {[%clk 0:03:02.4]}
5... Nc6 {[%clk 0:02:08.5]} 6. Nge2 {[%clk 0:03:03.1]} 6... e6 {[%clk
0:02:01.7]} 7. O-O {[%clk 0:03:02.1]} 7... Nge7 {[%clk 0:02:02.3]} 8. d3 {[%clk
0:03:02.1]} 8... O-O {[%clk 0:02:02.8]} 9. a3 {[%clk 0:03:02.6]} 9... Rb8 {[%clk
0:02:02]} 10. Rb1 {[%clk 0:03:02.7]} 10... Nd4 {[%clk 0:01:51.2]} 11. b4 {[%clk
0:02:57.3]} 11... b6 {[%clk 0:01:50.5]} 12. Nxd4 {[%clk 0:02:46.2]} 12... cxd4
{[%clk 0:01:39.2]} 13. Ne2 {[%clk 0:02:45.9]} 13... f5 {[%clk 0:01:36.7]} 14.
exf5 {[%clk 0:02:28.3]} 14... gxf5 {[%clk 0:01:33.2]} 15. Nf4 {[%clk 0:02:28.3]}
15... e5 {[%clk 0:01:25.8]} 16. Nd5 {[%clk 0:02:28.3]} 16... Nxd5 {[%clk
0:01:19.4]} 17. Bxd5+ {[%clk 0:02:27.5]} 17... Kh8 {[%clk 0:01:20.1]} 18. Qh5
{[%clk 0:02:24.3]} 18... Bb7 {[%clk 0:01:16.5]} 19. Bxb7 {[%clk 0:02:06.3]}
19... Rxb7 {[%clk 0:01:17.4]} 20. f4 {[%clk 0:02:06.8]} 20... e4 {[%clk
0:01:13.1]} 21. Re1 {[%clk 0:02:03]} 21... Re7 {[%clk 0:01:07]} 22. Bb2 {[%clk
0:01:58.3]} 22... exd3 {[%clk 0:01:01.8]} 23. Qf3 {[%clk 0:01:52.7]} 23... d2
{[%clk 0:00:58.8]} 24. Red1 {[%clk 0:01:50.6]} 24... Qe8 {[%clk 0:00:43.1]} 25.
Qf2 {[%clk 0:01:34.7]} 25... Re2 {[%clk 0:00:40.1]} 26. Qf3 {[%clk 0:01:29.3]}
26... Qe3+ {[%clk 0:00:37.8]} 27. Qxe3 {[%clk 0:01:28.6]} 27... dxe3 {[%clk
0:00:38.7]} 28. Bxg7+ {[%clk 0:01:19]} 28... Kxg7 {[%clk 0:00:39.6]} 29. Rf1
{[%clk 0:01:03]} 29... Rc8 {[%clk 0:00:36.4]} 30. c5 {[%clk 0:01:02]} 0-1

[Event "Early-Titled-Tuesday-Blitz-April-23-2024"]
[Site "Chess.com"]
[Date "2024.04.23"]
[Round "4"]
[White "alpope"]
[Black "EdmundPlayer"]
[Result "1-0"]
[WhiteElo "2509"]
[BlackElo "2277"]
[TimeControl "180+1"]
[EndTime "8:38:21 PDT"]
[Termination "alpope won on time"]

1. e4 {[%clk 0:03:00.9]} 1... d5 {[%clk 0:02:55.4]} 2. exd5 {[%clk 0:02:59.9]}
2... Qxd5 {[%clk 0:02:54.9]} 3. Nc3 {[%clk 0:02:59.2]} 3... Qa5 {[%clk
0:02:54.2]} 4. Bc4 {[%clk 0:02:59.2]} 4... Nf6 {[%clk 0:02:51.1]} 5. d3 {[%clk
0:02:58.8]} 5... c6 {[%clk 0:02:50.1]} 6. Bd2 {[%clk 0:02:57.8]} 6... Bg4 {[%clk
0:02:40.4]} 7. f3 {[%clk 0:02:56.2]} 7... Bf5 {[%clk 0:02:33.9]} 8. g4 {[%clk
0:02:50]} 8... Bg6 {[%clk 0:02:31]} 9. f4 {[%clk 0:02:50.3]} 9... e6 {[%clk
0:02:23.5]} 10. Qe2 {[%clk 0:02:50.1]} 10... Be7 {[%clk 0:01:23.9]} 11. Nd5
{[%clk 0:02:50]} 11... Qd8 {[%clk 0:01:23.9]} 12. Nxe7 {[%clk 0:02:50.6]} 12...
Qxe7 {[%clk 0:01:24]} 13. O-O-O {[%clk 0:02:51.3]} 13... h5 {[%clk 0:01:20.5]}
14. g5 {[%clk 0:02:48.4]} 14... Nd5 {[%clk 0:01:19.4]} 15. Nf3 {[%clk
0:02:48.2]} 15... Nd7 {[%clk 0:01:18.7]} 16. Nh4 {[%clk 0:02:46.3]} 16... b5
{[%clk 0:01:06.5]} 17. Bxd5 {[%clk 0:02:33.1]} 17... cxd5 {[%clk 0:00:51.6]} 18.
Nxg6 {[%clk 0:02:32.5]} 18... fxg6 {[%clk 0:00:52.1]} 19. Rde1 {[%clk
0:02:33.2]} 19... Kf7 {[%clk 0:00:51.5]} 20. Bb4 {[%clk 0:02:26.5]} 20... Qe8
{[%clk 0:00:45.3]} 21. Rhf1 {[%clk 0:02:26.4]} 21... a5 {[%clk 0:00:41.3]} 22.
Bc3 {[%clk 0:02:26.9]} 22... b4 {[%clk 0:00:25]} 23. Bd4 {[%clk 0:02:26.9]}
23... Ra6 {[%clk 0:00:25.1]} 24. Kb1 {[%clk 0:02:21.4]} 24... a4 {[%clk
0:00:22.9]} 25. Qd2 {[%clk 0:02:03.8]} 25... Qb8 {[%clk 0:00:21.4]} 26. Rf3
{[%clk 0:01:59.4]} 26... Rc8 {[%clk 0:00:20.7]} 27. f5 {[%clk 0:01:49]} 27...
gxf5 {[%clk 0:00:18.8]} 28. g6+ {[%clk 0:01:48.9]} 28... Kxg6 {[%clk 0:00:15.7]}
29. Rg1+ {[%clk 0:01:47.4]} 29... Kf7 {[%clk 0:00:13.2]} 30. Rxg7+ {[%clk
0:01:46.4]} 30... Ke8 {[%clk 0:00:13.5]} 31. Qg5 {[%clk 0:01:45.1]} 31... Qd6
{[%clk 0:00:02.9]} 32. Bf6 {[%clk 0:01:45.4]} 32... Nf8 {[%clk 0:00:01.5]} 33.
Re7+ {[%clk 0:01:43.4]} 1-0

[Event "Early-Titled-Tuesday-Blitz-April-23-2024"]
[Site "Chess.com"]
[Date "2024.04.23"]
[Round "4"]
[White "AlainBruxelles"]
[Black "komogro"]
[Result "0-1"]
[WhiteElo "2343"]
[BlackElo "2550"]
[TimeControl "180+1"]
[EndTime "8:38:31 PDT"]
[Termination "komogro won by resignation"]

1. e4 {[%clk 0:02:56]} 1... g6 {[%clk 0:02:58.1]} 2. d4 {[%clk 0:02:54.7]} 2...
Bg7 {[%clk 0:02:58.3]} 3. Nf3 {[%clk 0:02:54.5]} 3... d6 {[%clk 0:02:58.7]} 4.
h3 {[%clk 0:02:54.4]} 4... Nc6 {[%clk 0:02:56.3]} 5. Be2 {[%clk 0:02:50.4]} 5...
Nf6 {[%clk 0:02:54.4]} 6. Nc3 {[%clk 0:02:49.5]} 6... O-O {[%clk 0:02:50.6]} 7.
O-O {[%clk 0:02:49.5]} 7... e5 {[%clk 0:02:46.3]} 8. Be3 {[%clk 0:02:46.2]} 8...
exd4 {[%clk 0:02:43.4]} 9. Nxd4 {[%clk 0:02:45.6]} 9... Bd7 {[%clk 0:02:43.8]}
10. a4 {[%clk 0:02:44.7]} 10... Re8 {[%clk 0:02:42.7]} 11. a5 {[%clk 0:02:44.3]}
11... Nxe4 {[%clk 0:02:41]} 12. Nxe4 {[%clk 0:02:41.7]} 12... Rxe4 {[%clk
0:02:40.8]} 13. c3 {[%clk 0:02:36]} 13... Nxd4 {[%clk 0:02:21.9]} 14. cxd4
{[%clk 0:02:34.3]} 14... c6 {[%clk 0:02:09.7]} 15. a6 {[%clk 0:02:21.9]} 15...
b6 {[%clk 0:02:09.6]} 16. Rc1 {[%clk 0:02:22]} 16... d5 {[%clk 0:02:06.1]} 17.
Qd2 {[%clk 0:02:15.8]} 17... Qe7 {[%clk 0:02:00.5]} 18. Bf3 {[%clk 0:02:06.2]}
18... Re6 {[%clk 0:01:54.7]} 19. Bg5 {[%clk 0:01:56.2]} 19... Bf6 {[%clk
0:01:50.7]} 20. Bf4 {[%clk 0:01:52.4]} 20... h5 {[%clk 0:01:42.3]} 21. g4 {[%clk
0:01:38.7]} 21... hxg4 {[%clk 0:01:42]} 22. Bxg4 {[%clk 0:01:38.6]} 22... Re4
{[%clk 0:01:41.6]} 23. Bg3 {[%clk 0:00:47.4]} 23... Bxg4 {[%clk 0:01:36.5]} 24.
hxg4 {[%clk 0:00:46.8]} 24... Rxd4 {[%clk 0:01:36.2]} 25. Qh6 {[%clk 0:00:43.3]}
25... Bg5 {[%clk 0:01:33.4]} 26. Qh3 {[%clk 0:00:24.1]} 26... Bxc1 {[%clk
0:01:33]} 27. Rxc1 {[%clk 0:00:24.8]} 27... c5 {[%clk 0:01:33.1]} 28. Bh4 {[%clk
0:00:20.8]} 28... Qe2 {[%clk 0:01:26]} 29. Bf6 {[%clk 0:00:13.3]} 29... Qxg4+
{[%clk 0:01:25.1]} 30. Qxg4 {[%clk 0:00:09.6]} 30... Rxg4+ {[%clk 0:01:26]} 0-1

[Event "Early-Titled-Tuesday-Blitz-April-23-2024"]
[Site "Chess.com"]
[Date "2024.04.23"]
[Round "4"]
[White "ATM622"]
[Black "mary-sanna"]
[Result "1-0"]
[WhiteElo "2492"]
[BlackElo "2257"]
[TimeControl "180+1"]
[EndTime "8:38:33 PDT"]
[Termination "ATM622 won by resignation"]

1. d4 {[%clk 0:03:00.9]} 1... d5 {[%clk 0:03:00]} 2. c4 {[%clk 0:03:00.5]} 2...
e6 {[%clk 0:03:00.3]} 3. Nf3 {[%clk 0:03:00.6]} 3... Nf6 {[%clk 0:03:00.3]} 4.
g3 {[%clk 0:03:00.8]} 4... dxc4 {[%clk 0:03:00.3]} 5. Bg2 {[%clk 0:03:00.8]}
5... Bd7 {[%clk 0:03:00.9]} 6. O-O {[%clk 0:02:52.9]} 6... Bc6 {[%clk
0:03:00.5]} 7. Nbd2 {[%clk 0:02:49.6]} 7... b5 {[%clk 0:02:59.8]} 8. a4 {[%clk
0:02:47.6]} 8... a6 {[%clk 0:02:59]} 9. Qc2 {[%clk 0:02:48]} 9... Bd6 {[%clk
0:02:43]} 10. e4 {[%clk 0:02:46]} 10... Be7 {[%clk 0:02:34.8]} 11. b3 {[%clk
0:02:43.6]} 11... cxb3 {[%clk 0:02:33.2]} 12. Qxb3 {[%clk 0:02:42.6]} 12... Nxe4
{[%clk 0:02:01.8]} 13. Nxe4 {[%clk 0:02:38.5]} 13... Bxe4 {[%clk 0:02:01.3]} 14.
axb5 {[%clk 0:02:38.7]} 14... axb5 {[%clk 0:01:56.6]} 15. Rxa8 {[%clk
0:02:38.3]} 15... Bxa8 {[%clk 0:01:56.3]} 16. Qxb5+ {[%clk 0:02:38.6]} 16... Bc6
{[%clk 0:01:56.2]} 17. Qb1 {[%clk 0:02:34.7]} 17... O-O {[%clk 0:01:55.5]} 18.
Bf4 {[%clk 0:02:29.6]} 18... Nd7 {[%clk 0:01:50.9]} 19. Rc1 {[%clk 0:02:28.6]}
19... Qa8 {[%clk 0:01:37.7]} 20. Rxc6 {[%clk 0:02:28.2]} 20... Rb8 {[%clk
0:01:22.6]} 21. Qd3 {[%clk 0:01:59.2]} 21... Nf6 {[%clk 0:00:12.3]} 22. Ne5
{[%clk 0:01:51.8]} 22... Qa1+ {[%clk 0:00:11.3]} 23. Rc1 {[%clk 0:01:51.5]}
23... Qb2 {[%clk 0:00:08.2]} 24. h4 {[%clk 0:01:48.3]} 24... Bd6 {[%clk
0:00:07.9]} 25. Rf1 {[%clk 0:01:42.5]} 25... h6 {[%clk 0:00:07.7]} 26. Nc4
{[%clk 0:01:40.4]} 26... Qb4 {[%clk 0:00:03.3]} 27. Nxd6 {[%clk 0:01:36.9]}
27... cxd6 {[%clk 0:00:04.2]} 28. Qd2 {[%clk 0:01:35.6]} 28... Qb3 {[%clk
0:00:03.7]} 29. Bxd6 {[%clk 0:01:34.5]} 29... Rd8 {[%clk 0:00:03.7]} 30. Be7
{[%clk 0:01:33.8]} 30... Rd7 {[%clk 0:00:03.1]} 31. Bxf6 {[%clk 0:01:34.1]}
31... gxf6 {[%clk 0:00:04]} 32. Qxh6 {[%clk 0:01:34.4]} 32... Qd5 {[%clk
0:00:02.4]} 33. Bxd5 {[%clk 0:01:34]} 1-0